fUSD/lending_fUSD_20260621
["ID","MTS","AMOUNT","RATE_DAILY","PERIOD"]
[425945432,1782041477000,-500.0,0.00028219,2]
[425945444,1782041477000,-500.0,0.00028219,2]
[425945407,1782041477000,-420.423312,0.00028219,2]
[425945410,1782041477000,-500.0,0.00028219,2]
[425945409,1782041477000,-3767.72,0.00028219,2]
[425945408,1782041477000,-500.0,0.00028219,2]
[425945411,1782041477000,-10187.27,0.00028219,2]
[425945417,1782041477000,-500.0,0.00028219,2]
[425945420,1782041477000,-907.49,0.00028219,2]
[425945415,1782041477000,-7097.95,0.00028219,2]
[425945418,1782041477000,-9769.93,0.00028219,2]
[425945413,1782041477000,-500.0,0.00028219,2]
[425945414,1782041477000,-500.0,0.00028219,2]
[425945412,1782041477000,-500.0,0.00028219,2]
[425945419,1782041477000,-635.22,0.00028219,2]
[425945416,1782041477000,-6306.04,0.00028219,2]
[425945422,1782041477000,-5383.81,0.00028219,2]
[425945421,1782041477000,-6658.95,0.00028219,2]
[425945426,1782041477000,-500.0,0.00028219,2]
[425945427,1782041477000,-4489.89,0.00028219,2]
[425945429,1782041477000,-500.0,0.00028219,2]
[425945425,1782041477000,-500.0,0.00028219,2]
[425945428,1782041477000,-500.0,0.00028219,2]
[425945423,1782041477000,-4117.41,0.00028219,2]
[425945424,1782041477000,-500.0,0.00028219,2]
[425945430,1782041477000,-500.0,0.00028219,2]
[425945433,1782041477000,-500.0,0.00028219,2]
[425945431,1782041477000,-900.14,0.00028219,2]
[425945434,1782041477000,-500.0,0.00028219,2]
[425945437,1782041477000,-403.29947283,0.00028219,2]
[425945467,1782041477000,-644.07,0.00028219,2]
[425945459,1782041477000,-500.0,0.00028219,2]
[425945463,1782041477000,-604.06,0.00028219,2]
[425945505,1782041477000,-500.0,0.00028219,2]
[425945499,1782041477000,-500.0,0.00028219,2]
[425945503,1782041477000,-500.0,0.00028219,2]
[425945504,1782041477000,-500.0,0.00028219,2]
[425945501,1782041477000,-560.51,0.00028219,2]
[425945500,1782041477000,-500.0,0.00028219,2]
[425945502,1782041477000,-6743.01,0.00028219,2]
[425945519,1782041477000,-5230.31,0.00028219,2]
[425945509,1782041477000,-500.0,0.00028219,2]
[425945510,1782041477000,-7687.48,0.00028219,2]
[425945518,1782041477000,-500.0,0.00028219,2]
[425945508,1782041477000,-500.0,0.00028219,2]
[425945520,1782041477000,-2865.46,0.00028219,2]
[425945515,1782041477000,-709.91,0.00028219,2]
[425945517,1782041477000,-1036.7,0.00028219,2]
[425945516,1782041477000,-500.0,0.00028219,2]
[425945511,1782041477000,-500.0,0.00028219,2]
[425945513,1782041477000,-1317.73,0.00028219,2]
[425945512,1782041477000,-15685.64,0.00028219,2]
[425945514,1782041477000,-551.8,0.00028219,2]
[425945523,1782041477000,-1267.73,0.00028219,2]
[425945521,1782041477000,-577.03,0.00028219,2]
[425945525,1782041477000,-500.0,0.00028219,2]
[425945524,1782041477000,-500.0,0.00028219,2]
[425945526,1782041477000,-8765.19,0.00028219,2]
[425945522,1782041477000,-500.0,0.00028219,2]
[425945465,1782041477000,-500.0,0.00028219,2]
[425945497,1782041477000,-4255.92,0.00028219,2]
[425945498,1782041477000,-500.0,0.00028219,2]
[425945507,1782041477000,-500.0,0.00028219,2]
[425945506,1782041477000,-500.0,0.00028219,2]
[425945496,1782041477000,-500.0,0.00028219,2]
[425945468,1782041477000,-9170.86,0.00028219,2]
[425945471,1782041477000,-528.51,0.00028219,2]
[425945477,1782041477000,-4706.4,0.00028219,2]
[425945476,1782041477000,-560.48,0.00028219,2]
[425945473,1782041477000,-500.0,0.00028219,2]
[425945475,1782041477000,-261.36781844,0.00028219,2]
[425945478,1782041477000,-500.0,0.00028219,2]
[425945474,1782041477000,-500.0,0.00028219,2]
[425945472,1782041477000,-7268.59,0.00028219,2]
[425945479,1782041477000,-9051.47,0.00028219,2]
[425945481,1782041477000,-629.21,0.00028219,2]
[425945480,1782041477000,-7027.59,0.00028219,2]
[425945483,1782041477000,-500.0,0.00028219,2]
[425945466,1782041477000,-4309.61,0.00028219,2]
[425945489,1782041477000,-500.0,0.00028219,2]
[425945484,1782041477000,-1177.81,0.00028219,2]
[425945493,1782041477000,-3570.15,0.00028219,2]
[425945486,1782041477000,-500.0,0.00028219,2]
[425945485,1782041477000,-500.0,0.00028219,2]
[425945488,1782041477000,-500.0,0.00028219,2]
[425945487,1782041477000,-500.0,0.00028219,2]
[425945491,1782041477000,-500.0,0.00028219,2]
[425945490,1782041477000,-6082.93,0.00028219,2]
[425945482,1782041477000,-500.0,0.00028219,2]
[425945492,1782041477000,-500.0,0.00028219,2]
[425945494,1782041477000,-500.0,0.00028219,2]
[425945495,1782041477000,-499.70084309,0.00028219,2]
[425945545,1782041478000,-500.0,0.00028219,2]
[425945543,1782041478000,-500.0,0.00028219,2]
[425945552,1782041478000,-500.0,0.00028219,2]
[425945546,1782041478000,-500.0,0.00028219,2]
[425945542,1782041478000,-996.79,0.00028219,2]
[425945548,1782041478000,-639.54625155,0.00028219,2]
[425945555,1782041478000,-500.0,0.00028219,2]
[425945547,1782041478000,-4283.71,0.00028219,2]
[425945549,1782041478000,-1956.1,0.00028219,2]
[425945551,1782041478000,-600.62128825,0.00028219,2]
[425945554,1782041478000,-729.73,0.00028219,2]
[425945544,1782041478000,-500.0,0.00028219,2]
[425945550,1782041478000,-500.0,0.00028219,2]
[425945541,1782041478000,-670.9,0.00028219,2]
[425945538,1782041478000,-4282.25,0.00028219,2]
[425945539,1782041478000,-500.0,0.00028219,2]
[425945535,1782041478000,-500.0,0.00028219,2]
[425945534,1782041478000,-1014.39,0.00028219,2]
[425945537,1782041478000,-500.0,0.00028219,2]
[425945536,1782041478000,-525.46,0.00028219,2]
[425945533,1782041478000,-500.0,0.00028219,2]
[425945531,1782041478000,-6716.5,0.00028219,2]
[425945530,1782041478000,-500.0,0.00028219,2]
[425945532,1782041478000,-500.0,0.00028219,2]
[425945528,1782041478000,-1574.38,0.00028219,2]
[425945529,1782041478000,-904.85,0.00028219,2]
[425945527,1782041478000,-500.0,0.00028219,2]
[425945540,1782041478000,-2639.33,0.00028219,2]
[425945553,1782041478000,-2259.71,0.00028219,2]
[425945566,1782041478000,-1067.51,0.00028219,2]
[425945557,1782041478000,-500.0,0.00028219,2]
[425945556,1782041478000,-500.0,0.00028219,2]
[425945584,1782041478000,-489.807298,0.00028493,2]
[425945585,1782041478000,-500.0,0.00028493,2]
[425945582,1782041478000,-941.47464104,0.00028493,15]
[425945583,1782041478000,-501.82455083,0.00028493,2]
[425945581,1782041478000,-200.0,0.00028485,2]
[425945579,1782041478000,-175.0,0.00028447,2]
[425945577,1782041478000,-160.0,0.00028429,3]
[425945576,1782041478000,-151.0,0.00028267,2]
[425945575,1782041478000,-330.03439968,0.00028243,2]
[425945574,1782041478000,-2183.7,0.00028219,2]
[425945578,1782041478000,-150.0,0.00028447,2]
[425945573,1782041478000,-500.0,0.00028219,2]
[425945572,1782041478000,-500.0,0.00028219,2]
[425945580,1782041478000,-847.0,0.00028478,2]
[425945568,1782041478000,-500.0,0.00028219,2]
[425945558,1782041478000,-500.0,0.00028219,2]
[425945570,1782041478000,-500.0,0.00028219,2]
[425945560,1782041478000,-500.0,0.00028219,2]
[425945561,1782041478000,-500.0,0.00028219,2]
[425945559,1782041478000,-909.56,0.00028219,2]
[425945565,1782041478000,-503.69,0.00028219,2]
[425945562,1782041478000,-573.05,0.00028219,2]
[425945567,1782041478000,-500.0,0.00028219,2]
[425945563,1782041478000,-500.0,0.00028219,2]
[425945564,1782041478000,-500.0,0.00028219,2]
[425945571,1782041478000,-500.0,0.00028219,2]
[425945569,1782041478000,-1203.84,0.00028219,2]
[425945610,1782041479000,-500.0,0.00028493,2]
[425945620,1782041479000,-500.0,0.00028493,2]
[425945604,1782041479000,-500.0,0.00028493,2]
[425945612,1782041479000,-500.0,0.00028493,2]
[425945605,1782041479000,-500.0,0.00028493,2]
[425945609,1782041479000,-500.0,0.00028493,2]
[425945614,1782041479000,-500.0,0.00028493,2]
[425945603,1782041479000,-504.32,0.00028493,2]
[425945617,1782041479000,-500.0,0.00028493,2]
[425945621,1782041479000,-500.0,0.00028493,2]
[425945618,1782041479000,-500.0,0.00028493,2]
[425945616,1782041479000,-500.0,0.00028493,2]
[425945619,1782041479000,-770.75,0.00028493,2]
[425945624,1782041479000,-601.57,0.00028493,2]
[425945626,1782041479000,-500.0,0.00028493,2]
[425945622,1782041479000,-500.0,0.00028493,2]
[425945611,1782041479000,-500.0,0.00028493,2]
[425945623,1782041479000,-500.0,0.00028493,2]
[425945615,1782041479000,-500.0,0.00028493,2]
[425945606,1782041479000,-500.0,0.00028493,2]
[425945590,1782041479000,-500.0,0.00028493,2]
[425945613,1782041479000,-500.0,0.00028493,2]
[425945625,1782041479000,-500.0,0.00028493,2]
[425945588,1782041479000,-500.0,0.00028493,2]
[425945587,1782041479000,-156.942244,0.00028493,2]
[425945591,1782041479000,-500.0,0.00028493,2]
[425945589,1782041479000,-500.0,0.00028493,2]
[425945592,1782041479000,-500.0,0.00028493,2]
[425945586,1782041479000,-500.0,0.00028493,2]
[425945593,1782041479000,-500.0,0.00028493,2]
[425945608,1782041479000,-692.58,0.00028493,2]
[425945596,1782041479000,-613.12211302,0.00028493,2]
[425945601,1782041479000,-626.28103759,0.00028493,2]
[425945600,1782041479000,-611.76,0.00028493,2]
[425945597,1782041479000,-500.0,0.00028493,2]
[425945595,1782041479000,-500.0,0.00028493,2]
[425945598,1782041479000,-500.0,0.00028493,2]
[425945599,1782041479000,-500.0,0.00028493,2]
[425945602,1782041479000,-510.54,0.00028493,2]
[425945607,1782041479000,-500.0,0.00028493,2]
[425945594,1782041479000,-608.74,0.00028493,2]
[425945629,1782041479000,-500.0,0.00028493,2]
[425945663,1782041479000,-543.31,0.00028493,2]
[425945630,1782041479000,-500.0,0.00028493,2]
[425945653,1782041479000,-500.0,0.00028493,2]
[425945652,1782041479000,-219.90765827,0.00028493,2]
[425945657,1782041479000,-750.93,0.00028493,2]
[425945656,1782041479000,-500.0,0.00028493,2]
[425945658,1782041479000,-500.0,0.00028493,2]
[425945655,1782041479000,-500.0,0.00028493,2]
[425945659,1782041479000,-500.0,0.00028493,2]
[425945654,1782041479000,-500.0,0.00028493,2]
[425945651,1782041479000,-500.0,0.00028493,2]
[425945665,1782041479000,-500.0,0.00028493,2]
[425945666,1782041479000,-500.0,0.00028493,2]
[425945662,1782041479000,-500.0,0.00028493,2]
[425945661,1782041479000,-500.0,0.00028493,2]
[425945664,1782041479000,-500.0,0.00028493,2]
[425945668,1782041479000,-500.0,0.00028493,2]
[425945670,1782041479000,-500.0,0.00028493,2]
[425945627,1782041479000,-500.0,0.00028493,2]
[425945669,1782041479000,-500.0,0.00028493,2]
[425945667,1782041479000,-500.0,0.00028493,2]
[425945647,1782041479000,-500.0,0.00028493,2]
[425945660,1782041479000,-500.0,0.00028493,2]
[425945649,1782041479000,-500.0,0.00028493,2]
[425945628,1782041479000,-500.0,0.00028493,2]
[425945632,1782041479000,-500.0,0.00028493,2]
[425945648,1782041479000,-500.0,0.00028493,2]
[425945637,1782041479000,-500.0,0.00028493,2]
[425945635,1782041479000,-526.22,0.00028493,2]
[425945634,1782041479000,-528.96619696,0.00028493,2]
[425945631,1782041479000,-866.67,0.00028493,2]
[425945636,1782041479000,-500.0,0.00028493,2]
[425945638,1782041479000,-500.0,0.00028493,2]
[425945633,1782041479000,-500.0,0.00028493,2]
[425945641,1782041479000,-228.14477535,0.00028493,2]
[425945643,1782041479000,-500.0,0.00028493,2]
[425945650,1782041479000,-500.0,0.00028493,2]
[425945642,1782041479000,-500.0,0.00028493,2]
[425945640,1782041479000,-562.08,0.00028493,2]
[425945645,1782041479000,-500.0,0.00028493,2]
[425945639,1782041479000,-721.38,0.00028493,2]
[425945646,1782041479000,-832.58,0.00028493,2]
[425945644,1782041479000,-500.0,0.00028493,2]
[425945701,1782041480000,-540.17,0.00028493,2]
[425945707,1782041480000,-500.0,0.00028493,2]
[425945706,1782041480000,-500.0,0.00028493,2]
[425945703,1782041480000,-828.79,0.00028493,2]
[425945710,1782041480000,-500.0,0.00028493,2]
[425945704,1782041480000,-689.03,0.00028493,2]
[425945709,1782041480000,-500.0,0.00028493,2]
[425945702,1782041480000,-500.0,0.00028493,2]
[425945700,1782041480000,-500.0,0.00028493,2]
[425945708,1782041480000,-500.0,0.00028493,2]
[425945705,1782041480000,-500.0,0.00028493,2]
[425945714,1782041480000,-500.0,0.00028493,2]
[425945713,1782041480000,-500.0,0.00028493,2]
[425945711,1782041480000,-500.0,0.00028493,2]
[425945721,1782041480000,-572.19,0.00028493,2]
[425945719,1782041480000,-500.0,0.00028493,2]
[425945715,1782041480000,-500.0,0.00028493,2]
[425945717,1782041480000,-500.0,0.00028493,2]
[425945718,1782041480000,-500.0,0.00028493,2]
[425945716,1782041480000,-563.62,0.00028493,2]
[425945720,1782041480000,-675.01,0.00028493,2]
[425945696,1782041480000,-749.57,0.00028493,2]
[425945723,1782041480000,-899.87,0.00028493,2]
[425945712,1782041480000,-500.0,0.00028493,2]
[425945699,1782041480000,-500.0,0.00028493,2]
[425945677,1782041480000,-500.0,0.00028493,2]
[425945691,1782041480000,-500.0,0.00028493,2]
[425945722,1782041480000,-412.7812557,0.00028493,2]
[425945671,1782041480000,-500.0,0.00028493,2]
[425945672,1782041480000,-500.0,0.00028493,2]
[425945674,1782041480000,-500.0,0.00028493,2]
[425945673,1782041480000,-500.0,0.00028493,2]
[425945675,1782041480000,-500.0,0.00028493,2]
[425945676,1782041480000,-599.62,0.00028493,2]
[425945678,1782041480000,-500.0,0.00028493,2]
[425945690,1782041480000,-500.0,0.00028493,2]
[425945685,1782041480000,-500.0,0.00028493,2]
[425945686,1782041480000,-500.0,0.00028493,2]
[425945683,1782041480000,-500.0,0.00028493,2]
[425945688,1782041480000,-510.48,0.00028493,2]
[425945681,1782041480000,-606.7,0.00028493,2]
[425945680,1782041480000,-528.84,0.00028493,2]
[425945689,1782041480000,-454.52756795,0.00028493,2]
[425945679,1782041480000,-500.0,0.00028493,2]
[425945687,1782041480000,-779.95,0.00028493,2]
[425945684,1782041480000,-535.30150108,0.00028493,2]
[425945682,1782041480000,-875.57,0.00028493,2]
[425945693,1782041480000,-349.25374443,0.00028493,2]
[425945697,1782041480000,-859.42,0.00028493,2]
[425945692,1782041480000,-500.0,0.00028493,2]
[425945695,1782041480000,-500.0,0.00028493,2]
[425945694,1782041480000,-500.0,0.00028493,2]
[425945698,1782041480000,-500.0,0.00028493,2]
[425945724,1782041480000,-500.0,0.00028493,2]
[425945749,1782041480000,-500.0,0.00028493,2]
[425945727,1782041480000,-764.28,0.00028493,2]
[425945758,1782041480000,-500.0,0.00028493,2]
[425945766,1782041480000,-500.0,0.00028493,2]
[425945761,1782041480000,-641.37,0.00028493,2]
[425945762,1782041480000,-500.0,0.00028493,2]
[425945760,1782041480000,-986.01,0.00028493,2]
[425945764,1782041480000,-500.0,0.00028493,2]
[425945763,1782041480000,-500.0,0.00028493,2]
[425945765,1782041480000,-500.0,0.00028493,2]
[425945756,1782041480000,-631.69,0.00028493,2]
[425945759,1782041480000,-500.0,0.00028493,2]
[425945767,1782041480000,-831.94,0.00028493,2]
[425945755,1782041480000,-654.24,0.00028493,2]
[425945771,1782041480000,-500.0,0.00028493,2]
[425945777,1782041480000,-500.0,0.00028493,2]
[425945772,1782041480000,-500.0,0.00028493,2]
[425945770,1782041480000,-500.0,0.00028493,2]
[425945773,1782041480000,-500.0,0.00028493,2]
[425945778,1782041480000,-500.0,0.00028493,2]
[425945769,1782041480000,-500.0,0.00028493,2]
[425945776,1782041480000,-500.0,0.00028493,2]
[425945774,1782041480000,-687.99,0.00028493,2]
[425945775,1782041480000,-500.0,0.00028493,2]
[425945780,1782041480000,-526.22,0.00028493,2]
[425945779,1782041480000,-500.0,0.00028493,2]
[425945768,1782041480000,-500.0,0.00028493,2]
[425945757,1782041480000,-500.0,0.00028493,2]
[425945730,1782041480000,-500.0,0.00028493,2]
[425945747,1782041480000,-983.91,0.00028493,2]
[425945726,1782041480000,-500.0,0.00028493,2]
[425945728,1782041480000,-500.0,0.00028493,2]
[425945732,1782041480000,-500.0,0.00028493,2]
[425945729,1782041480000,-298.53,0.00028493,2]
[425945725,1782041480000,-500.0,0.00028493,2]
[425945731,1782041480000,-500.0,0.00028493,2]
[425945733,1782041480000,-500.0,0.00028493,2]
[425945752,1782041480000,-4813.29,0.00028493,2]
[425945734,1782041480000,-609.23,0.00028493,2]
[425945736,1782041480000,-1118.10387786,0.00028493,2]
[425945739,1782041480000,-1098.61,0.00028493,2]
[425945740,1782041480000,-905.26,0.00028493,2]
[425945735,1782041480000,-500.0,0.00028493,2]
[425945737,1782041480000,-500.0,0.00028493,2]
[425945742,1782041480000,-500.0,0.00028493,2]
[425945750,1782041480000,-500.0,0.00028493,2]
[425945748,1782041480000,-423.97810242,0.00028493,2]
[425945743,1782041480000,-500.0,0.00028493,2]
[425945751,1782041480000,-500.0,0.00028493,2]
[425945754,1782041480000,-500.0,0.00028493,2]
[425945744,1782041480000,-500.0,0.00028493,2]
[425945745,1782041480000,-500.0,0.00028493,2]
[425945753,1782041480000,-620.76,0.00028493,2]
[425945738,1782041480000,-500.0,0.00028493,2]
[425945741,1782041480000,-500.0,0.00028493,2]
[425945746,1782041480000,-4333.78,0.00028493,2]
[425945822,1782041481000,-500.0,0.00028493,2]
[425945823,1782041481000,-526.72,0.00028493,2]
[425945813,1782041481000,-500.0,0.00028493,2]
[425945821,1782041481000,-500.0,0.00028493,2]
[425945814,1782041481000,-500.0,0.00028493,2]
[425945815,1782041481000,-502.21,0.00028493,2]
[425945817,1782041481000,-500.0,0.00028493,2]
[425945811,1782041481000,-500.0,0.00028493,2]
[425945808,1782041481000,-1113.8,0.00028493,2]
[425945818,1782041481000,-500.0,0.00028493,2]
[425945816,1782041481000,-500.0,0.00028493,2]
[425945834,1782041481000,-500.0,0.00028493,2]
[425945820,1782041481000,-500.0,0.00028493,2]
[425945831,1782041481000,-500.0,0.00028493,2]
[425945827,1782041481000,-500.0,0.00028493,2]
[425945825,1782041481000,-500.0,0.00028493,2]
[425945833,1782041481000,-532.12523778,0.00028493,2]
[425945824,1782041481000,-500.0,0.00028493,2]
[425945830,1782041481000,-248.8169898,0.00028493,2]
[425945826,1782041481000,-500.0,0.00028493,2]
[425945829,1782041481000,-500.0,0.00028493,2]
[425945832,1782041481000,-500.0,0.00028493,2]
[425945828,1782041481000,-500.0,0.00028493,2]
[425945807,1782041481000,-500.0,0.00028493,2]
[425945819,1782041481000,-500.0,0.00028493,2]
[425945804,1782041481000,-500.0,0.00028493,2]
[425945794,1782041481000,-1259.13,0.00028493,2]
[425945806,1782041481000,-500.0,0.00028493,2]
[425945837,1782041481000,-500.0,0.00028493,2]
[425945783,1782041481000,-500.0,0.00028493,2]
[425945782,1782041481000,-500.0,0.00028493,2]
[425945784,1782041481000,-837.97,0.00028493,2]
[425945785,1782041481000,-500.0,0.00028493,2]
[425945788,1782041481000,-500.0,0.00028493,2]
[425945786,1782041481000,-500.0,0.00028493,2]
[425945787,1782041481000,-500.0,0.00028493,2]
[425945789,1782041481000,-592.77,0.00028493,2]
[425945795,1782041481000,-500.0,0.00028493,2]
[425945796,1782041481000,-623.05,0.00028493,2]
[425945798,1782041481000,-1191.12,0.00028493,2]
[425945802,1782041481000,-570.63,0.00028493,2]
[425945800,1782041481000,-500.0,0.00028493,2]
[425945797,1782041481000,-175.91126475,0.00028493,2]
[425945793,1782041481000,-992.95,0.00028493,2]
[425945790,1782041481000,-500.0,0.00028493,2]
[425945791,1782041481000,-500.0,0.00028493,2]
[425945799,1782041481000,-500.0,0.00028493,2]
[425945801,1782041481000,-500.0,0.00028493,2]
[425945792,1782041481000,-500.0,0.00028493,2]
[425945805,1782041481000,-500.0,0.00028493,2]
[425945803,1782041481000,-747.79,0.00028493,2]
[425945810,1782041481000,-500.0,0.00028493,2]
[425945809,1782041481000,-500.0,0.00028493,2]
[425945812,1782041481000,-500.0,0.00028493,2]
[425945781,1782041481000,-500.0,0.00028493,2]
[425945838,1782041481000,-500.0,0.00028493,2]
[425945836,1782041481000,-500.0,0.00028493,2]
[425945868,1782041481000,-500.0,0.00028493,2]
[425945871,1782041481000,-500.0,0.00028493,2]
[425945870,1782041481000,-500.0,0.00028493,2]
[425945872,1782041481000,-899.62,0.00028493,2]
[425945869,1782041481000,-500.0,0.00028493,2]
[425945874,1782041481000,-558.96784261,0.00028493,2]
[425945873,1782041481000,-1737.27,0.00028493,2]
[425945875,1782041481000,-500.0,0.00028493,2]
[425945877,1782041481000,-657.06,0.00028493,2]
[425945878,1782041481000,-500.0,0.00028493,2]
[425945880,1782041481000,-500.0,0.00028493,2]
[425945879,1782041481000,-500.0,0.00028493,2]
[425945883,1782041481000,-500.0,0.00028493,2]
[425945890,1782041481000,-500.0,0.00028493,2]
[425945889,1782041481000,-500.0,0.00028493,2]
[425945886,1782041481000,-921.6,0.00028493,2]
[425945882,1782041481000,-500.0,0.00028493,2]
[425945891,1782041481000,-500.0,0.00028493,2]
[425945885,1782041481000,-500.0,0.00028493,2]
[425945887,1782041481000,-500.0,0.00028493,2]
[425945881,1782041481000,-640.28589283,0.00028493,2]
[425945884,1782041481000,-500.0,0.00028493,2]
[425945888,1782041481000,-500.0,0.00028493,2]
[425945892,1782041481000,-806.06,0.00028493,2]
[425945835,1782041481000,-500.0,0.00028493,2]
[425945863,1782041481000,-500.0,0.00028493,2]
[425945859,1782041481000,-500.0,0.00028493,2]
[425945876,1782041481000,-500.0,0.00028493,2]
[425945865,1782041481000,-500.0,0.00028493,2]
[425945861,1782041481000,-500.0,0.00028493,2]
[425945840,1782041481000,-500.0,0.00028493,2]
[425945843,1782041481000,-391.00625191,0.00028493,2]
[425945841,1782041481000,-500.0,0.00028493,2]
[425945839,1782041481000,-629.33,0.00028493,2]
[425945846,1782041481000,-1056.49,0.00028493,2]
[425945854,1782041481000,-3536.2,0.00028493,2]
[425945849,1782041481000,-542.14,0.00028493,2]
[425945855,1782041481000,-519.47637784,0.00028493,2]
[425945851,1782041481000,-609.14,0.00028493,2]
[425945850,1782041481000,-513.70317691,0.00028493,2]
[425945847,1782041481000,-500.0,0.00028493,2]
[425945853,1782041481000,-500.0,0.00028493,2]
[425945842,1782041481000,-592.05,0.00028493,2]
[425945844,1782041481000,-500.0,0.00028493,2]
[425945848,1782041481000,-500.0,0.00028493,2]
[425945860,1782041481000,-535.70656906,0.00028493,2]
[425945864,1782041481000,-500.0,0.00028493,2]
[425945866,1782041481000,-866.53,0.00028493,2]
[425945858,1782041481000,-500.0,0.00028493,2]
[425945862,1782041481000,-500.0,0.00028493,2]
[425945857,1782041481000,-500.0,0.00028493,2]
[425945867,1782041481000,-823.97,0.00028493,2]
[425945845,1782041481000,-500.0,0.00028493,2]
[425945852,1782041481000,-500.0,0.00028493,2]
[425945856,1782041481000,-961.8,0.00028493,2]
[425945931,1782041482000,-500.0,0.00028493,2]
[425945928,1782041482000,-500.0,0.00028493,2]
[425945934,1782041482000,-500.0,0.00028493,2]
[425945923,1782041482000,-500.0,0.00028493,2]
[425945929,1782041482000,-717.28,0.00028493,2]
[425945922,1782041482000,-500.0,0.00028493,2]
[425945921,1782041482000,-500.0,0.00028493,2]
[425945924,1782041482000,-500.0,0.00028493,2]
[425945920,1782041482000,-500.0,0.00028493,2]
[425945933,1782041482000,-1432.58,0.00028493,2]
[425945927,1782041482000,-786.39,0.00028493,2]
[425945932,1782041482000,-542.72,0.00028493,2]
[425945936,1782041482000,-2603.66,0.00028493,2]
[425945939,1782041482000,-500.0,0.00028493,2]
[425945937,1782041482000,-533.17,0.00028493,2]
[425945938,1782041482000,-500.0,0.00028493,2]
[425945935,1782041482000,-822.52,0.00028493,2]
[425945941,1782041482000,-4358.65,0.00028493,2]
[425945940,1782041482000,-833.58,0.00028493,2]
[425945942,1782041482000,-500.0,0.00028493,2]
[425945946,1782041482000,-500.0,0.00028493,2]
[425945944,1782041482000,-945.92,0.00028493,2]
[425945948,1782041482000,-4418.15,0.00028493,2]
[425945918,1782041482000,-500.0,0.00028493,2]
[425945930,1782041482000,-557.39,0.00028493,2]
[425945919,1782041482000,-500.0,0.00028493,2]
[425945945,1782041482000,-500.0,0.00028493,2]
[425945916,1782041482000,-500.0,0.00028493,2]
[425945894,1782041482000,-506.46,0.00028493,2]
[425945895,1782041482000,-500.0,0.00028493,2]
[425945896,1782041482000,-500.0,0.00028493,2]
[425945897,1782041482000,-500.0,0.00028493,2]
[425945899,1782041482000,-500.0,0.00028493,2]
[425945901,1782041482000,-500.0,0.00028493,2]
[425945898,1782041482000,-500.0,0.00028493,2]
[425945893,1782041482000,-500.0,0.00028493,2]
[425945900,1782041482000,-348.70208262,0.00028493,2]
[425945904,1782041482000,-500.0,0.00028493,2]
[425945912,1782041482000,-500.0,0.00028493,2]
[425945911,1782041482000,-500.0,0.00028493,2]
[425945907,1782041482000,-634.66,0.00028493,2]
[425945913,1782041482000,-633.65,0.00028493,2]